Cogmind - Beta 14 @@@ ROGUE MODE // 2025.03.22 @ 13:48:35 Player: Qethsegol Result: Destroyed by G-47 Trooper with Particle Gun Performance ------------- Evolutions (1) 500 Regions Visited (4) 800 Robots Destroyed (11) 55 Value Destroyed (298) 298 Prototype IDs (0) 0 Alien Tech Used (0) 0 Bonus (0) 0 TOTAL SCORE: 1653 Bonus ------- None Cogmind --------- Core Integrity 0/400 Matter 244/300 Energy 99/100 System Corruption 0% Temperature Cool (21) Movement Core (200) Ox3 Location -9/Storage Parts ------- > --- POWER (1) -------- (None) > --- PROPULSION (3) --- (None) > --- UTILITY (3) ------ Medium Storage Unit > --- WEAPON (2) ------- (None) > --- INVENTORY (10) --- Targeting Computer Peak State ------------ > --- POWER ------------ Ion Engine > --- PROPULSION ------- Flight Unit Flight Unit Flight Unit > --- UTILITY ---------- Small Storage Unit Small Storage Unit Weight Redist. System > --- WEAPON ----------- Small Laser Rocket Launcher > --- INVENTORY -------- Light Ion Engine Aluminum Leg Aluminum Leg VTOL Module Medium Storage Unit Targeting Computer Assault Rifle Heavy Assault Rifle [Rating: 12] Favorites ----------- Power Light Ion Engine Engine Light Ion Engine Propulsion Wheel Leg Aluminum Leg Wheel Wheel Flight Unit Flight Unit Utility Weight Redist. System Device Weight Redist. System Storage Small Storage Unit Weapon Assault Rifle Energy Gun Small Laser Ballistic Gun Assault Rifle Launcher Rocket Launcher Build | -11 -10 -10 -9 -9 ------- Run | Yrd Mat Min Mat Sto Slots Evolved 2 | . . . 2 . Power . | . . . . . Propulsion 1 | . . . 1 . Utility 1 | . . . 1 . Weapon . | . . . . . Parts Attached 25 | 6 3 . 8 8 Power 3 | 1 . . 1 1 Engine 3 | 1 . . 1 1 Core . | . . . . . Reactor . | . . . . . Propulsion 8 | 2 . . 3 3 Treads . | . . . . . Leg 2 | . . . . 2 Wheel 2 | 2 . . . . Hover . | . . . . . Flight 4 | . . . 3 1 Utility 7 | 1 2 . 3 1 Device 2 | 1 1 . . . Storage 5 | . 1 . 3 1 Processor . | . . . . . Hackware . | . . . . . Protection . | . . . . . Artifact . | . . . . . Weapon 7 | 2 1 . 1 3 Energy Gun 3 | 1 1 . 1 . Energy Cannon . | . . . . . Ballistic Gun 2 | 1 . . . 1 Ballistic Cannon . | . . . . . Launcher 2 | . . . . 2 Special Weapon . | . . . . . Impact Weapon . | . . . . . Slashing Weapon . | . . . . . Piercing Weapon . | . . . . . Special Melee Weapon . | . . . . . Unidentified Prototypes . | . . . . . Parts Lost 7 | . . 1 . 6 Power 1 | . . . . 1 Propulsion 4 | . . . . 4 Utility . | . . . . . Weapon 2 | . . 1 . 1 Highest Loss Streak 6 | . . 1 . 6 To Critical Strikes . | . . . . . Average Slot Usage (%) 92 | . 98 97 97 68 Engine 12 | . 14 14 11 7 Wheel 16 | . 28 28 1 . Flight 10 | . . . 31 21 Device 13 | . 16 14 11 7 Storage 14 | . 9 14 21 17 Energy Gun 10 | . 14 11 9 2 Ballistic Gun 11 | . 14 14 11 5 Peak Build Rating 12 | 6 9 9 11 12 Average Rating 8 | 3 8 8 10 7 On Entrance 6 | . 6 9 8 11 Naked Turns 8 | . . . . 8 Heaviest Build 26 | 8 26 26 25 19 Greatest Support 26 | 20 26 26 26 20 Greatest Overweight (x) 3 | . . . 1 3 Average Overweight (x) . | . . . . . Largest Inventory Capacity 15 | 5 15 15 15 10 Average Capacity 10 | 5 11 15 8 8 Most Carried 15 | 5 15 15 15 8 Average Carried 8 | 2 10 15 8 5 Final Capacity 15 | 5 15 15 8 10 Final Carried 15 | 5 15 15 8 1 Class Distribution -------------------- 100% | Mutant Dominant Class ---------------- Mutant | -10/Materials Mutant | -10/Mines Mutant | -9/Materials Mutant | -9/Storage Resources | -11 -10 -10 -9 -9 ----------- Run | Yrd Mat Min Mat Sto Matter Collected 502 | 269 72 . . 161 Remotely . | . . . . . Salvage Created 408 | 50 107 . . 251 Parts 24 | 3 8 . . 13 Haulers Intercepted 2 | . 1 . . 1 Recyclers Shooed . | . . . . . Parts Field Recycled . | . . . . . Retrieved Matter . | . . . . . Parts Self-Destructed . | . . . . . Prevented . | . . . . . Kills | -11 -10 -10 -9 -9 ------- Run | Yrd Mat Min Mat Sto Combat Hostiles Destroyed 7 | 1 1 . . 5 Guns 2 | 1 1 . . . AOE 5 | . . . . 5 Classes Destroyed 5 | 1 2 . . 2 Hauler 2 | . 1 . . 1 Recycler 1 | . . . . 1 Operator 1 | . 1 . . . Grunt 6 | 1 1 . . 4 Sentry 1 | . . . . 1 Best Kill Streak 5 | 1 1 . . 5 Combat Bots Only 4 | 1 1 . . 4 Max Kills in Single Turn 2 | 1 1 . . 2 Gunslinging . | . . . . . Exploded 2 | . . . . 2 Melee . | . . . . . Uniques/NPCs Destroyed . | . . . . . Combat | -11 -10 -10 -9 -9 -------- Run | Yrd Mat Min Mat Sto Hostile Shots Fired 136 | 5 9 11 4 107 Missed 43 | 1 2 6 2 32 Damage Taken 1152 | 46 94 82 31 899 Core 456 | 12 26 8 . 410 Absorbed by Shields . | . . . . . Core Remaining (%) 88 | 95 . 81 . . Volleys Fired 30 | 3 14 . . 13 Largest 2 | 2 2 . . 2 Hottest 60 | 60 60 . . 60 Shots Fired 51 | 6 28 . . 17 Gun 42 | 6 28 . . 8 Cannon . | . . . . . Launcher 9 | . . . . 9 Special . | . . . . . Kinetic 21 | 3 14 . . 4 Thermal 15 | . 11 . . 4 Explosive 9 | . . . . 9 Electromagnetic 6 | 3 3 . . . Robot Hit Streak 8 | 2 7 . . 8 Robot Miss Streak 6 | 1 6 . . 1 Penetration Max . | . . . . . Secondary Targets . | . . . . . Shots Hit Robots 27 | 3 16 . . 8 Core Hits 26 | 2 7 . . 17 Critical Kills . | . . . . . Critical Parts Destroyed . | . . . . . Critical Strikes . | . . . . . Melee Attacks . | . . . . . Impact . | . . . . . Slashing . | . . . . . Piercing . | . . . . . Sneak Attacks . | . . . . . Combat Hostiles . | . . . . . Follow-up Attacks . | . . . . . Damage Inflicted 835 | 36 194 3 . 602 Guns 230 | 36 194 . . . Cannons . | . . . . . Explosions 596 | . . . . 596 Melee . | . . . . . Ramming 9 | . . 3 . 6 Kinetic 126 | 24 102 . . . Thermal 67 | . 67 . . . Explosive 596 | . . . . 596 Electromagnetic 37 | 12 25 . . . Impact . | . . . . . Slashing . | . . . . . Piercing . | . . . . . Highest Corruption . | . . . . . Average Corruption . | . . . . . Corruption Purged . | . . . . . Corruption Blocked . | . . . . . Overload Shots . | . . . . . Overflow Damage 4 | . . . . 4 Projectiles . | . . . . . Explosions 4 | . . . . 4 Melee . | . . . . . Knockbacks . | . . . . . Impact . | . . . . . Kinetic . | . . . . . Secondary . | . . . . . Self-Inflicted Damage 4 | . . 1 . 3 Shots 1 | . . . . 1 Rammed 6 | . . 1 . 5 Targets Rammed 7 | . . 1 . 6 Kicked 1 | . . . . 1 Crushed . | . . . . . Highest Temperature 28 | 12 12 . . 28 Average Temperature 9 | 9 10 . . 8 Received Heat Transfer 555 | 24 51 . 9 471 Siege Activations . | . . . . . Robots Corrupted . | . . . . . Combat Hostiles . | . . . . . Parts Fried . | . . . . . Impact Corruptions . | . . . . . Robots Melted . | . . . . . Combat Hostiles . | . . . . . Parts Melted . | . . . . . Heat Transferred 150 | . 150 . . . Parts Sabotaged . | . . . . . Parts Stolen . | . . . . . Parts Stripped . | . . . . . Power Chain Reactions . | . . . . . Alert | -11 -10 -10 -9 -9 ------- Run | Yrd Mat Min Mat Sto Peak Influence 183 | 20 127 79 71 183 Initial 49 | . 13 49 26 29 Average 55 | 3 79 64 35 53 Maximum Alert Level . | . . . . . Low Security (%) 100 | 100 100 100 100 100 Level 1 . | . . . . . Level 2 . | . . . . . Level 3 . | . . . . . Level 4 . | . . . . . Level 5 . | . . . . . High Security . | . . . . . Max Security . | . . . . . Squads Dispatched 3 | . 1 . 1 1 Investigation . | . . . . . Extermination . | . . . . . Reinforcement 2 | . 1 . 1 . Assault . | . . . . . Garrison 1 | . . . . 1 Intercept . | . . . . . Searches Triggered . | . . . . . Construction Impeded . | . . . . . Haulers Reinforced . | . . . . . Active Scanning Responses . | . . . . . Cargo Convoy Interrupts . | . . . . . Stealth | -11 -10 -10 -9 -9 --------- Run | Yrd Mat Min Mat Sto Distress Signals 3 | . 1 . . 2 Communications Jammed . | . . . . . Distress Signals . | . . . . . Times Spotted 38 | 1 9 7 5 16 Peak Tracking Total 18 | 1 5 18 3 10 Tactical Retreats 1 | . . 1 . . Traps | -11 -10 -10 -9 -9 ------- Run | Yrd Mat Min Mat Sto Traps Triggered . | . . . . . Indirectly . | . . . . . Trap Hack Attempts . | . . . . . Triggered . | . . . . . Disarmed . | . . . . . Reprogrammed 1 | . . . . 1 Reused . | . . . . . Traps Extracted . | . . . . . Installed . | . . . . . Triggered . | . . . . . Machines | -11 -10 -10 -9 -9 ---------- Run | Yrd Mat Min Mat Sto Machines Disabled 1 | . 1 . . . Max in Single Turn 1 | . 1 . . . Machines Repaired . | . . . . . Machines Dismantled . | . . . . . Machines Sabotaged . | . . . . . Overloaded Fab Kills . | . . . . . Hacking | -11 -10 -10 -9 -9 --------- Run | Yrd Mat Min Mat Sto Machines Accessed 3 | . 2 . . 1 Terminals 2 | . 1 . . 1 Fabricators . | . . . . . Repair Stations . | . . . . . Recycling Units 1 | . 1 . . . Scanalyzers . | . . . . . Garrison Access . | . . . . . Total Hacks 8 | . 5 . . 3 Successful 6 | . 4 . . 2 Failed 2 | . 1 . . 1 Catastrophic 1 | . 1 . . . Database Lockouts . | . . . . . Manual 2 | . . . . 2 Terminals 6 | . 3 . . 3 Fabricators . | . . . . . Repair Stations . | . . . . . Recycling Units 2 | . 2 . . . Scanalyzers . | . . . . . Garrison Access . | . . . . . Terminal Hacks 4 | . 2 . . 2 Emergency Access Points 1 | . 1 . . . Unreport Threat 1 | . . . . 1 Reprogram Traps 1 | . . . . 1 Surveillance Status 1 | . 1 . . . Fabricator Hacks . | . . . . . Repair Station Hacks . | . . . . . Recycling Unit Hacks 2 | . 2 . . . Report Inventory 1 | . 1 . . . Retrieve Components 1 | . 1 . . . Scanalyzer . | . . . . . Garrison Access Hacks . | . . . . . Unauthorized Hacks . | . . . . . Terminals . | . . . . . Fabricators . | . . . . . Repair Stations . | . . . . . Recycling Units . | . . . . . Scanalyzers . | . . . . . Garrison Access . | . . . . . Data Cores Recovered . | . . . . . Used . | . . . . . Hacking Detections 1 | . . . . 1 Full Trace Events . | . . . . . Feedback Events . | . . . . . Feedback Blocked . | . . . . . Robot Schematics Acquired . | . . . . . Robots Built . | . . . . . Authchips . | . . . . . Time . | . . . . . Total Robot Build Rating . | . . . . . Part Schematics Acquired . | . . . . . Parts Built . | . . . . . Authchips . | . . . . . Time . | . . . . . Total Part Build Rating . | . . . . . Parts Repaired . | . . . . . Time . | . . . . . Parts Recycled . | . . . . . Recycled Matter . | . . . . . Retrieved Matter . | . . . . . Retrieved Components 2 | . 2 . . . Parts Scanalyzed . | . . . . . Part Schematics Acquired . | . . . . . Parts Damaged . | . . . . . Bothacking | -11 -10 -10 -9 -9 ------------ Run | Yrd Mat Min Mat Sto Used RIF Installer . | . . . . . Robots Hacked . | . . . . . Non-combat . | . . . . . Combat . | . . . . . Robot Hacks Applied . | . . . . . Relay Couplers Released . | . . . . . Fabnet Peak Effective % . | . . . . . Robots Rewired . | . . . . . Allies Hacked . | . . . . . Hacks Repelled . | . . . . . Allies | -11 -10 -10 -9 -9 -------- Run | Yrd Mat Min Mat Sto Total Allies . | . . . . . Largest Group . | . . . . . Highest-Rated Group . | . . . . . Highest-Rated Ally . | . . . . . Total Orders . | . . . . . Ally Attacks . | . . . . . Total Damage . | . . . . . Kills . | . . . . . Allies Corrupted . | . . . . . Allies Melted . | . . . . . Intel | -11 -10 -10 -9 -9 ------- Run | Yrd Mat Min Mat Sto Robot Analysis Total . | . . . . . Derelict Logs Recovered 1 | . . 1 . . Drone Launches . | . . . . . Drone Recoveries . | . . . . . Exploration | -11 -10 -10 -9 -9 ------------- Run | Yrd Mat Min Mat Sto Turns Passed 868 | 102 339 110 167 150 Spaces Moved 895 | 90 289 137 199 180 Core 40 | 20 . . . 20 Treads . | . . . . . Legs 18 | . . . . 18 Wheels 504 | 70 289 137 8 . Hover . | . . . . . Flight 333 | . . . 191 142 Fastest Speed 32 | 50 80 80 34 32 Average Speed 64 | 73 80 80 37 53 Slowest Speed 200 | 80 80 80 114 200 Overloaded Moves . | . . . . . Propulsion Burnouts . | . . . . . Robots Hopped . | . . . . . Cave-ins Triggered . | . . . . . Exploration Rate (%) 28 | 8 39 38 16 39 Regions Visited 4 Branch Regions 2 Pre-discovered Areas 1 | . . 1 . . Known Exits Taken . | . . . . . Unknown Exits Taken 4 | 1 1 1 1 . Scrap Searched . | . . . . . Spaces Dug . | . . . . . Terrain Destroyed 69 | . . . . 69 Melee . | . . . . . Projectile . | . . . . . AOE 69 | . . . . 69 Terrain Rammed . | . . . . . Walls Destroyed . | . . . . . Machines Disabled . | . . . . . Actions | -11 -10 -10 -9 -9 --------- Run | Yrd Mat Min Mat Sto Total 1131 | 116 370 137 294 214 Wait 133 | 13 44 . 72 4 Move 891 | 89 288 136 198 180 Hop . | . . . . . Pick Up 25 | 5 15 . 4 1 Fast Attach 11 | 6 2 . 3 . Attach 8 | . . . 2 6 Detach 1 | . . . 1 . Swap 6 | . 1 . 3 2 Drop 19 | . 6 . 11 2 Fire 30 | 3 14 . . 13 Melee . | . . . . . Ram 6 | . . 1 . 5 Kick 1 | . . . . 1 Crush . | . . . . . Escape Stasis . | . . . . . Rewire . | . . . . . Trap . | . . . . . Miscellaneous . | . . . . . Route ------- -11/Scrapyard -10/Materials -10/Mines -9/Materials -9/Storage History --------- Turn | Location | Event 2 | -11/Scrapyard | Met Revision 17 69 | -11/Scrapyard | Discovered new exit (range 8) 103 | -11/Scrapyard | Entered Materials 303 | -10/Materials | Build established: Mutant 425 | -10/Materials | Discovered new exit (range 6) 442 | -10/Materials | Entered Mines 480 | -10/Mines | Assembled infested the area 485 | -10/Mines | Assisted by a Guerilla fighting off Assembled 539 | -10/Mines | Learned Materials emergency access door positions 543 | -10/Mines | Learned location of Storage (-9) 548 | -10/Mines | Discovered new exit (range 7) 552 | -10/Mines | Entered Materials 552 | -9/Materials | Evolved 2 slots: Propulsion x1, Utility x1 678 | -9/Materials | Discovered new exit (range 11) 719 | -9/Materials | Entered Storage 771 | -9/Storage | Garrison activated, responded to threat 816 | -9/Storage | Released all parts (7) 849 | -9/Storage | Core integrity fell below 50% 864 | -9/Storage | Core integrity fell below 20% 869 | -9/Storage | Destroyed by G-47 Trooper with Particle Gun Last Messages --------------- 00847_ U-05 Engineer builds a Wall. 00849_ U-05 Engineer lays Concrete. 00852_ Kicked U-05 Engineer. 00852_ U-05 Engineer sends out distress signal. 00853_ Aluminum Leg destroyed. 00853_ Slammed into K-01 Serf. 00855_ Acquired 35 matter. 00855_ U-05 Engineer builds a Wall. 00857_ Slammed into G-34 Mercenary. 00858_ C-30 ARC bursts open, deploying its payload. 00858_ G-47 Trooper unfolds itself. 00858_ G-34 Mercenary unfolds itself. 00859_ K-01 Serf collects debris. 00859_ Slammed into K-01 Serf. 00859_ U-05 Engineer lays Concrete. 00860_ U-05 Engineer builds a Wall. 00861_ Slammed into G-47 Trooper. 00862_ Acquired 87 matter. 00863_ Slammed into G-47 Trooper. 00864_ U-05 Engineer lays Concrete. Map ----- +----------------------------------------------------+ | ###########???????????????????????????????????? | | #???????????????????????????????????? | | #???????????????????????????????????? | | #???????????????????????????????????? | | #???????????????????????????????????? | | #???????????????????????????????????? | | #???????????????????????????????????? | | """"" #???????????????????????????????????? | | """"" #???????????????????????????????????? | | """"" #???????????????????????????????????? | | """"" #???????????????????????????????????? | | #???????????? ??????????????????????? | | #???????????? ??????????????????????? | | ^ #????????#### ??????????????????????? | | ### ######/#####?????+ ??????????????????????? | | ?## ## #?????# #??????????????????????? | | ### ## """ =#?????# gT??????????????????????? | | # ## """ #?????# #??????????????????????? | | # ## """ #?????+ #??????????????????????? | | # [#?????# #??????????????????????? | | # # """ #?????# #??????????????????????? | | [ # """ #?????# #??????????????????????? | | ##% # """ #?????# #??????????????????????? | | ##% # #?????#k #??????????????????????? | | # # ## ######?????# #??????????????????????? | | # ##?##?## ####??# @#??????????????????????? | | ########## ######g #??????????????????????? | | " =]![ gg a#??????????????????????? | | " + ### ]#####gk #??????????????????????? | | " # ! ### [ #??# #??????????????????????? | | " # ![ #?###= #??# #??????????????????????? | | " # ######+##??# +??????????????????????? | | # # """ ""??# #??????????????????????? | | # " " / """ ""??# #??????????????????????? | | ### "G" ^# """ ""??# #??????????????????????? | | ## """ #* ??# #??????????????????????? | | ## #? !# #??????????????????????? | | ?# #?"""T"""### ??????????????????????? | | ?# ! ##+#+##########?# ??????????????????????? | | ?##!=### #????# ??????????????????????? | | ??#![#"" #????#####??????????????????????? | | ??#*!#"Y """ """ #???????????????????????????????? | | ??# =#"" """ """ #???????????????????????????????? | | ??# ### """ """ #???????????????????????????????? | | ??# T## #???????????????????????????????? | | ??# ### [ #???????????????????????????????? | | ??""""?# ???????????????????????????????? | | ???????###T#"T"###???????????????????????????????? | | ?????????#######?????????????????????????????????? | | ?????????????????????????????????????????????????? | +----------------------------------------------------+ Best States ------------- Heat Dissipation 35 Energy Generation 10 Energy Capacity 250 Matter Stores 300 Matter Capacity 300 Sight Range 16 Terrain Scan Density 10 Additional Mass Support 6 Evasion (%) 63 Item Schematics ----------------- None Robot Schematics ------------------ None Fabricated ------------ Nothing Alien Tech Used ----------------- None Achievements -------------- I Survived The Infestation Slippery One Challenges ------------ None Game ------ Seed HeatMassMultitool Manual? 0 Play Time 00:24:37 Cumulative 4.9 hours Start 2025.03.22 @ 13:20:29 End 2025.03.22 @ 13:48:35 Sessions 1 Manual Loads 0 Difficulty Rogue Special Mode None Game No. 8 Rogue 8 Adventurer 0 Explorer 0 Win Type - Total 0 Types 0/0/0/0/0/0/0/0/0 Lore% 7 Gallery% 7 Achievement% 18 Wizard Run 0 Options --------- Layout 0 ASCII 1 Keyboard 1 Movement Numpad Keybinds 0 Fullscreen 2 Font 18/SmallcapsGlow Map View 76x50 Zoom Use 0% Tactical HUD 1 Map Filters NONE Filters NONE Steam 1 RUN: 988bc64f-a7fb-4f00-a942-15c63d6469e0